Cogmind - Beta 14 X2 @@@ ROGUE MODE // 2024.07.28 @ 12:39:41 Player: tourn Result: Destroyed by EO-9CC(R) with Subdweller Shrapnel Launcher Performance ------------- Evolutions (0) 0 Regions Visited (2) 400 Robots Destroyed (33) 165 Value Destroyed (855) 855 Prototype IDs (0) 0 Alien Tech Used (0) 0 Bonus (0) 0 TOTAL SCORE: 1420 Bonus ------- None Cogmind --------- Core Integrity 0/250 Matter 116/300 Energy 125/125 System Corruption 2% Temperature Cool (0) Movement Rolling (110) Location -10/Subcaves Parts ------- > --- POWER (1) -------- Light Ion Engine > --- PROPULSION (2) --- Light Treads Subdweller Monowheel > --- UTILITY (2) ------ Disposable Heat Sink Medium Storage Unit > --- WEAPON (2) ------- Battle Rifle Battle Cannon > --- INVENTORY (10) --- Spiked Treads Aluminum Leg Heat Sink Large Storage Unit Subdweller Machine Gun Mace Peak State ------------ > --- POWER ------------ Light Ion Engine > --- PROPULSION ------- Aluminum Leg Subdweller Monowheel > --- UTILITY ---------- Medium Storage Unit Improved Terrain Scanner > --- WEAPON ----------- Barrage Gun Mace > --- INVENTORY -------- Light Ion Engine Light Treads Light Treads Heat Sink Large Storage Unit Shield Generator Medium Laser Light Assault Rifle Battle Cannon Rocket Launcher [Rating: 14] Favorites ----------- Power Light Ion Engine Engine Light Ion Engine Propulsion Aluminum Leg Treads Light Treads Leg Aluminum Leg Wheel Subdweller Monowheel Utility Medium Storage Unit Device Improved Terrain Scanner Storage Medium Storage Unit Protection Core Shielding Weapon Battle Cannon Energy Gun Medium Laser Ballistic Gun Barrage Gun Ballistic Cannon Battle Cannon Launcher Rocket Launcher Special Weapon Multitool Impact Weapon Mace Build | -11 -10 -10 ------- Run | Yrd Mat Sub Slots Evolved . | . . . Power . | . . . Propulsion . | . . . Utility . | . . . Weapon . | . . . Parts Attached 63 | . 15 48 Power 3 | . 1 2 Engine 3 | . 1 2 Core . | . . . Reactor . | . . . Propulsion 6 | . 1 5 Treads 2 | . . 2 Leg 1 | . 1 . Wheel 3 | . . 3 Hover . | . . . Flight . | . . . Utility 22 | . 5 17 Device 20 | . 4 16 Storage 1 | . 1 . Processor . | . . . Hackware . | . . . Protection 1 | . . 1 Artifact . | . . . Weapon 32 | . 8 24 Energy Gun 7 | . 4 3 Energy Cannon . | . . . Ballistic Gun 6 | . . 6 Ballistic Cannon 6 | . . 6 Launcher 7 | . 3 4 Special Weapon 1 | . . 1 Impact Weapon 5 | . 1 4 Slashing Weapon . | . . . Piercing Weapon . | . . . Special Melee Weapon . | . . . Unidentified Prototypes . | . . . Parts Lost 8 | . . 8 Power . | . . . Propulsion 2 | . . 2 Utility 2 | . . 2 Weapon 4 | . . 4 Highest Loss Streak 3 | . . 3 To Critical Strikes . | . . . Average Slot Usage (%) 98 | . 94 99 Engine 14 | . 14 14 Treads 9 | . . 11 Leg 12 | . 28 8 Wheel 5 | . . 7 Device 12 | . 8 13 Storage 14 | . 14 14 Energy Gun 9 | . 27 6 Ballistic Gun 7 | . . 8 Ballistic Cannon 7 | . . 9 Impact Weapon 2 | . . 3 Naked Turns . | . . . Heaviest Build 23 | 13 19 23 Greatest Support 40 | 20 20 40 Greatest Overweight (x) 2 | . . 2 Average Overweight (x) . | . . . Largest Inventory Capacity 10 | . 10 10 Average Capacity 9 | . 9 10 Most Carried 10 | . 10 10 Average Carried 9 | . 8 9 Final Capacity 10 | 8 10 10 Final Carried 10 | 6 10 6 Class Distribution -------------------- 100% | Mutant Dominant Class ---------------- Mutant | -10/Materials Mutant | -10/Subcaves Resources | -11 -10 -10 ----------- Run | Yrd Mat Sub Matter Collected 1108 | 200 93 815 Remotely . | . . . Salvage Created 773 | . 211 562 Parts 59 | . 26 33 Haulers Intercepted . | . . . Recyclers Shooed 2 | . 2 . Parts Field Recycled . | . . . Retrieved Matter . | . . . Parts Self-Destructed 23 | . . 23 Prevented . | . . . Kills | -11 -10 -10 ------- Run | Yrd Mat Sub Combat Hostiles Destroyed 30 | . 9 21 Guns 9 | . 2 7 Cannons 7 | . . 7 AOE 14 | . 7 7 Classes Destroyed 7 | . 5 2 Worker 1 | . 1 . Tunneler 1 | . 1 . Operator 1 | . 1 . Swarmer 12 | . 6 6 Grunt 4 | . 3 1 Sentry 1 | . . 1 Subdweller 13 | . . 13 Best Kill Streak 3 | . 3 3 Combat Bots Only 3 | . 3 3 Max Kills in Single Turn 3 | . 3 3 Gunslinging . | . . . Exploded 3 | . 3 3 Melee . | . . . Uniques/NPCs Destroyed . | . . . Combat | -11 -10 -10 -------- Run | Yrd Mat Sub Hostile Shots Fired 110 | . 26 84 Missed 24 | . 5 19 Damage Taken 1553 | . 289 1264 Core 256 | . 43 213 Absorbed by Shields 61 | . . 61 Core Remaining (%) 100 | 100 . . Volleys Fired 72 | . 22 50 Largest 2 | . 2 2 Hottest 100 | . 90 100 Shots Fired 130 | . 39 91 Gun 82 | . 34 48 Cannon 34 | . . 34 Launcher 14 | . 5 9 Special . | . . . Kinetic 63 | . . 63 Thermal 49 | . 31 18 Explosive 14 | . 5 9 Electromagnetic 4 | . 3 1 Robot Hit Streak 14 | . 6 14 Robot Miss Streak 3 | . 3 3 Penetration Max . | . . . Secondary Targets 1 | . . 1 Max Gunslinging Chain 1 | . . 1 Shots Hit Robots 89 | . 26 63 Core Hits 53 | . 17 36 Critical Kills . | . . . Critical Parts Destroyed . | . . . Critical Strikes 2 | . 2 . Burn 1 | . 1 . Corrupt 1 | . 1 . Melee Attacks 29 | . 1 28 Impact 29 | . 1 28 Slashing . | . . . Piercing . | . . . Sneak Attacks . | . . . Combat Hostiles . | . . . Follow-up Attacks . | . . . Damage Inflicted 2149 | . 639 1510 Guns 798 | . 292 506 Cannons 486 | . . 486 Explosions 865 | . 347 518 Melee . | . . . Ramming . | . . . Kinetic 804 | . . 804 Thermal 454 | . 277 177 Explosive 865 | . 347 518 Electromagnetic 26 | . 15 11 Impact . | . . . Slashing . | . . . Piercing . | . . . Highest Corruption 2 | . 2 2 Average Corruption 2 | . 2 2 Corruption Purged . | . . . Corruption Blocked . | . . . Effects 42 | . 11 31 Message Errors 9 | . 2 7 Matter Fused 11 | . 3 8 Heat Flow Errors 4 | . 1 3 Energy Discharges 4 | . 2 2 Parts Rejected 2 | . 1 1 Parts Fused 2 | . . 2 Data Loss (minor) 3 | . . 3 Data Loss (major) 2 | . . 2 Misfires 2 | . 1 1 Alerts 1 | . . 1 Weapon Failures 2 | . 1 1 Overload Shots . | . . . Overflow Damage . | . . . Projectiles . | . . . Explosions . | . . . Melee . | . . . Knockbacks 7 | . . 7 Impact . | . . . Kinetic 7 | . . 7 Secondary . | . . . Self-Inflicted Damage 204 | . 78 126 Shots 7 | . 3 4 Rammed . | . . . Targets Rammed . | . . . Kicked . | . . . Crushed . | . . . Highest Temperature 301 | . 301 251 Average Temperature 99 | . 104 83 Received Heat Transfer 232 | . 78 154 Siege Activations . | . . . Robots Corrupted . | . . . Combat Hostiles . | . . . Parts Fried . | . . . Impact Corruptions . | . . . Robots Melted . | . . . Combat Hostiles . | . . . Parts Melted 1 | . . 1 Heat Transferred 1323 | . 805 518 Parts Sabotaged . | . . . Parts Stolen . | . . . Parts Stripped . | . . . Power Chain Reactions . | . . . Alert | -11 -10 -10 ------- Run | Yrd Mat Sub Peak Influence 231 | . 231 . Initial . | . . . Average 68 | . 68 . Maximum Alert Level 1 | . 1 . Low Security (%) 90 | . 90 . Level 1 9 | . 9 . Level 2 . | . . . Level 3 . | . . . Level 4 . | . . . Level 5 . | . . . High Security . | . . . Max Security . | . . . Squads Dispatched 2 | . 2 . Investigation 1 | . 1 . Extermination . | . . . Reinforcement 1 | . 1 . Assault . | . . . Garrison . | . . . Intercept . | . . . Searches Triggered . | . . . Construction Impeded . | . . . Haulers Reinforced . | . . . Active Scanning Responses . | . . . Cargo Convoy Interrupts . | . . . Stealth | -11 -10 -10 --------- Run | Yrd Mat Sub Distress Signals 1 | . 1 . Communications Jammed . | . . . Distress Signals . | . . . Times Spotted 39 | . 16 23 Peak Tracking Total 4 | . 4 3 Tactical Retreats 1 | . 1 . Traps | -11 -10 -10 ------- Run | Yrd Mat Sub Traps Triggered 1 | . 1 . Indirectly . | . . . Trap Hack Attempts . | . . . Triggered . | . . . Disarmed . | . . . Reprogrammed . | . . . Reused . | . . . Traps Extracted . | . . . Installed . | . . . Triggered 2 | . . 2 Machines | -11 -10 -10 ---------- Run | Yrd Mat Sub Machines Disabled 1 | . 1 . Max in Single Turn 1 | . 1 . Machines Repaired . | . . . Machines Dismantled . | . . . Machines Sabotaged . | . . . Overloaded Fab Kills . | . . . Hacking | -11 -10 -10 --------- Run | Yrd Mat Sub Machines Accessed 4 | . 3 1 Terminals 3 | . 3 . Fabricators . | . . . Repair Stations . | . . . Recycling Units . | . . . Scanalyzers . | . . . Garrison Access . | . . . Total Hacks 10 | . 7 3 Successful 6 | . 3 3 Failed 4 | . 4 . Catastrophic 1 | . 1 . Database Lockouts . | . . . Manual 7 | . 7 . Terminals 7 | . 7 . Fabricators . | . . . Repair Stations . | . . . Recycling Units . | . . . Scanalyzers . | . . . Garrison Access . | . . . Terminal Hacks 5 | . 2 3 Record 3 | . . 3 Branch Access Points 1 | . 1 . Zone Layout 1 | . 1 . Fabricator Hacks . | . . . Repair Station Hacks . | . . . Recycling Unit Hacks . | . . . Scanalyzer . | . . . Garrison Access Hacks . | . . . Unauthorized Hacks 1 | . 1 . Terminals 1 | . 1 . Botnet 1 | . 1 . Fabricators . | . . . Repair Stations . | . . . Recycling Units . | . . . Scanalyzers . | . . . Garrison Access . | . . . Data Cores Recovered . | . . . Used . | . . . Hacking Detections 3 | . 3 . Full Trace Events 1 | . 1 . Feedback Events . | . . . Feedback Blocked . | . . . Robot Schematics Acquired . | . . . Robots Built . | . . . Authchips . | . . . Time . | . . . Total Robot Build Rating . | . . . Part Schematics Acquired . | . . . Parts Built . | . . . Authchips . | . . . Time . | . . . Total Part Build Rating . | . . . Parts Repaired . | . . . Time . | . . . Parts Recycled . | . . . Recycled Matter . | . . . Retrieved Matter . | . . . Retrieved Components . | . . . Parts Scanalyzed . | . . . Part Schematics Acquired . | . . . Parts Damaged . | . . . Bothacking | -11 -10 -10 ------------ Run | Yrd Mat Sub Used RIF Installer . | . . . Robots Hacked . | . . . Non-combat . | . . . Combat . | . . . Robot Hacks Applied . | . . . Relay Couplers Released . | . . . Fabnet Peak Effective % . | . . . Robots Rewired . | . . . Allies Hacked . | . . . Hacks Repelled . | . . . Allies | -11 -10 -10 -------- Run | Yrd Mat Sub Total Allies . | . . . Largest Group . | . . . Highest-Rated Group . | . . . Highest-Rated Ally . | . . . Total Orders . | . . . Ally Attacks . | . . . Total Damage . | . . . Kills . | . . . Allies Corrupted . | . . . Allies Melted . | . . . Intel | -11 -10 -10 ------- Run | Yrd Mat Sub Robot Analysis Total . | . . . Derelict Logs Recovered 1 | . . 1 Drone Launches . | . . . Drone Recoveries . | . . . Exploration | -11 -10 -10 ------------- Run | Yrd Mat Sub Turns Passed 3565 | . 625 2940 Spaces Moved 1630 | 1 415 1214 Core . | . . . Treads 472 | . . 472 Legs 555 | 1 415 139 Wheels 603 | . . 603 Hover . | . . . Flight . | . . . Fastest Speed 110 | 120 120 110 Average Speed 129 | 120 120 132 Slowest Speed 260 | 120 120 260 Overloaded Moves . | . . . Propulsion Burnouts . | . . . Robots Hopped . | . . . Cave-ins Triggered . | . . . Exploration Rate (%) 42 | 2 61 64 Regions Visited 2 Branch Regions 1 Pre-discovered Areas . | . . . Known Exits Taken . | . . . Unknown Exits Taken 2 | 1 1 . Scrap Searched 13 | . . 13 Spaces Dug 46 | . . 46 Terrain Destroyed 126 | . 37 89 Melee 10 | . . 10 Projectile . | . . . AOE 116 | . 37 79 Terrain Rammed . | . . . Walls Destroyed . | . . . Machines Disabled . | . . . Actions | -11 -10 -10 --------- Run | Yrd Mat Sub Total 2898 | . 499 2399 Wait 1072 | . 31 1041 Move 1628 | . 414 1214 Hop . | . . . Pick Up 13 | . 8 5 Fast Attach 14 | . 4 10 Attach 10 | . 2 8 Detach 4 | . 1 3 Swap 39 | . 9 30 Drop 17 | . 7 10 Fire 72 | . 22 50 Melee 29 | . 1 28 Ram . | . . . Kick . | . . . Crush . | . . . Escape Stasis . | . . . Rewire . | . . . Trap . | . . . Miscellaneous . | . . . Route ------- -11/Scrapyard -10/Materials (discovered 4 exits: [*Mat x2] / *Min / *Sub) -10/Subcaves (discovered 3 exits: [*Mat x2] / [Rec]) History --------- Turn | Location | Event 1 | -11/Scrapyard | Discovered new exit (range 0) 1 | -11/Scrapyard | Entered Materials 54 | -10/Materials | Discovered new exit (range 16) 143 | -10/Materials | Identified exit to Mines 240 | -10/Materials | Discovered new exit (range 14) 313 | -10/Materials | Build established: Mutant 357 | -10/Materials | Discovered new exit (range 9) 498 | -10/Materials | Discovered new exit (range 11) 626 | -10/Materials | Entered Subcaves 1822 | -10/Subcaves | Discovered new exit (range 13) 1830 | -10/Subcaves | Shifting Twisted Machinery released Battle Rifle 1832 | -10/Subcaves | Shifting Twisted Machinery released Sub. Laser 2444 | -10/Subcaves | Disturbed a concealed Subdweller 2531 | -10/Subcaves | Discovered new exit (range 8) 2758 | -10/Subcaves | Visited Clippyterm 2762 | -10/Subcaves | Learned Factory trap positions 3095 | -10/Subcaves | Learned Materials terminal intel 3100 | -10/Subcaves | Discovered new exit (range 12) 3298 | -10/Subcaves | Shifting Twisted Machinery released Battle Cannon 3342 | -10/Subcaves | Shifting Twisted Machinery released Unknown Protection 3491 | -10/Subcaves | Ambushed by Subdweller buried in earth 3492 | -10/Subcaves | Core integrity fell below 50% 3521 | -10/Subcaves | Ambushed by Subdweller buried in earth 3521 | -10/Subcaves | Ambushed by Subdweller buried in earth 3525 | -10/Subcaves | Ambushed by Subdweller buried in earth 3557 | -10/Subcaves | Lost 3 parts (1n2w) 3566 | -10/Subcaves | Destroyed by EO-9CC(R) with Subdweller Shrapnel Launcher Last Messages --------------- 03477_ AARDPCUDHB#3QFQXBLNW6AU=DYYPPU9&M4X 03492_ 9S-0AD(R): "ARGHSUB!" 03497_ 9S-0AD(R) destroyed. 03505_ Acquired 32 matter. 03506_ Acquired 4 matter. 03522_ EO-9CC(R): "ARGHSUB!" 03522_ 9K-LOF(R): "ARGHSUB!" 03522_ The unstable cave ceiling collapses. 03523_ 9K-LOF(R) destroyed. 03524_ The unstable cave ceiling collapses. 03526_ 31-18O(R): "ARGHSUB!" 03526_ Battle Cannon destroyed. 03526_ Rocket Launcher destroyed. 03526_ Lgt. Treads destroyed. 03532_ Sub. Power Source shoots sparks and powers down. 03538_ Dropped Broken Sub. Power Source. 03541_ 31-18O(R) knocked back. 03544_ 31-18O(R) destroyed. 03561_ Acquired 19 matter. Map ----- +----------------------------------------------------+ | ????????????????????????????????????????????????? | | ????????????????????????????????????????????????? | | ????????????????????????????????????????????????? | | ????????????????????????????????????????????????? | | ????????????????????????????????????????????????? | | ????????????????????????????????????????????????? | | ????????????????????????????????????????????????? | | ????????????????????????????????????????????????? | | ????????????????????????????????????????????????? | | ????????????????????????????????????????????????? | | ????????????????????????????????????????????????? | | ????????????????????????????????????????????????? | | ????????????????????????????????????????????????? | | #####?#########?????????????????????????????????? | | ### ## #?????????????????????????????????? | | #?????????????????????????????????? | | ## #?????????????????????????????????? | | # #### ####??????????????????????????????? | | # ## ## ##########?????????????????????? | | #?# ## ## #?????????????????????? | | ### #?# ##????????????????????? | | ##?### ## #### ##???????????????????? | | #????##### ######??????????????? | | #???????# ## # ##?????????????? | | ######??## # # ### ; ; ##????????????? | | ##??####### %#@* ; #????????????? | | #????????## % #????????????? | | ##????????## *## ; #????????????? | | #?????????# ###; #????????????? | | #????????# ## #????????????? | | ## ##????????## # R #????????????? | | ??# ##??????????#### # # =% #????????????? | | ???# ##??????????????##### # #????????????? | | ????##???????????????????### #%= #???????????? | | ??????????????????????????? ##???????????? | | ??????????????????????????? # #????????????? | | ??????????????????????????# #????????????? | | ??????????????????????????### #????????????? | | ????????????????????????????### # ##????????????? | | ???????????????????????????????####?????????????? | | ??#??#???????????????????????????#??????????????? | | ????????#?????????????????#?????????????????????? | | ???????????????????????????????#????????????????? | | ????????????????????????????#???????????????????? | | ??????????????????#????#??????#?????????????????? | | ?#????????????????????????????????????#?????????? | | ???????????????????#?#????????????#?????????????? | | ??????????????????????#??##????##??##???????????? | | ???????????????????????#?####???#?????##??#?????? | | ####?????????????????????## ##??????????????#???? | +----------------------------------------------------+ Best States ------------- Heat Dissipation 35 Coolant Potential 50 Energy Generation 15 Energy Capacity 250 Matter Stores 300 Matter Capacity 300 Sight Range 16 Terrain Scan Range 16 Terrain Scan Density 10 Evasion (%) 55 Recoil Reduction 2 Item Schematics ----------------- None Robot Schematics ------------------ None Fabricated ------------ Nothing Alien Tech Used ----------------- None Achievements -------------- None Challenges ------------ None Game ------ Seed GrenadeAlertNeutralizer Manual? 0 Play Time 00:32:22 Cumulative 212.8 hours Start 2024.07.28 @ 12:07:39 End 2024.07.28 @ 12:39:41 Sessions 1 Manual Loads 0 Difficulty Rogue Special Mode None Game No. 82 Rogue 82 Adventurer 0 Explorer 0 Win Type - Total 5 Types 4/0/0/1/0/0/0/0/0 Lore% 37 Gallery% 67 Achievement% 55 Wizard Run 0 Options --------- Layout 2 ASCII 0 Keyboard 1 Movement Vi Keybinds 0 Fullscreen 2 Font 24/Terminus Map View 50x44 Zoom Use 0% Tactical HUD 1 Map Filters NONE Filters NONE Steam 1 RUN: a5fc0c36-6fed-4256-91f4-3a323391a7d9